[Event "Late-Titled-Tuesday-Blitz-June-25-2024"]
[Site "Chess.com"]
[Date "2024.06.25"]
[Round "5"]
[White "Gabrielian_Artur"]
[Black "Tonychess32"]
[Result "1-0"]
[WhiteElo "2726"]
[BlackElo "2541"]
[TimeControl "180+1"]
[EndTime "14:55:21 PDT"]
[Termination "Gabrielian_Artur won on time"]

1. e4 {[%clk 0:03:00.9]} 1... e6 {[%clk 0:02:59.2]} 2. d4 {[%clk 0:03:00.4]}
2... d5 {[%clk 0:02:59.5]} 3. Nc3 {[%clk 0:03:00.7]} 3... dxe4 {[%clk
0:02:55.9]} 4. Nxe4 {[%clk 0:03:00.3]} 4... Nd7 {[%clk 0:02:56.3]} 5. Nf3 {[%clk
0:03:00.2]} 5... Ngf6 {[%clk 0:02:56.6]} 6. Bg5 {[%clk 0:02:58.5]} 6... Be7
{[%clk 0:02:56.1]} 7. Nxf6+ {[%clk 0:02:57.5]} 7... Bxf6 {[%clk 0:02:55.9]} 8.
Bxf6 {[%clk 0:02:57.3]} 8... Qxf6 {[%clk 0:02:55.4]} 9. Qd3 {[%clk 0:02:56.8]}
9... O-O {[%clk 0:02:51]} 10. Qe4 {[%clk 0:02:55.7]} 10... c5 {[%clk 0:02:33.6]}
11. Bd3 {[%clk 0:02:54.8]} 11... g6 {[%clk 0:02:32.1]} 12. O-O-O {[%clk
0:02:49.4]} 12... cxd4 {[%clk 0:02:32.2]} 13. h4 {[%clk 0:02:41]} 13... Nc5
{[%clk 0:02:15.7]} 14. Qxd4 {[%clk 0:02:40.9]} 14... Qxd4 {[%clk 0:02:13.2]} 15.
Nxd4 {[%clk 0:02:40.6]} 15... e5 {[%clk 0:02:10.8]} 16. Nb5 {[%clk 0:02:34]}
16... Be6 {[%clk 0:01:50.3]} 17. Nc7 {[%clk 0:02:26.2]} 17... Nxd3+ {[%clk
0:01:50.4]} 18. Rxd3 {[%clk 0:02:25.2]} 18... Bf5 {[%clk 0:01:49.2]} 19. Nxa8
{[%clk 0:01:55]} 19... Bxd3 {[%clk 0:01:48.2]} 20. cxd3 {[%clk 0:01:55.4]} 20...
Rxa8 {[%clk 0:01:47.8]} 21. Kd2 {[%clk 0:01:54.2]} 21... Rc8 {[%clk 0:01:43.5]}
22. h5 {[%clk 0:01:50.5]} 22... Kg7 {[%clk 0:01:42.7]} 23. hxg6 {[%clk
0:01:49.4]} 23... hxg6 {[%clk 0:01:43.6]} 24. Rh4 {[%clk 0:01:49.4]} 24... f5
{[%clk 0:01:36.8]} 25. Ra4 {[%clk 0:01:48.5]} 25... a6 {[%clk 0:01:36.3]} 26.
Rb4 {[%clk 0:01:48.1]} 26... b5 {[%clk 0:01:31.4]} 27. a4 {[%clk 0:01:47.9]}
27... Rc5 {[%clk 0:01:31.6]} 28. axb5 {[%clk 0:01:46.6]} 28... axb5 {[%clk
0:01:32.5]} 29. Rh4 {[%clk 0:01:43.3]} 29... Kf6 {[%clk 0:01:30.4]} 30. Rh8
{[%clk 0:01:42.5]} 30... e4 {[%clk 0:01:03.5]} 31. dxe4 {[%clk 0:01:30.9]} 31...
fxe4 {[%clk 0:01:03]} 32. Rb8 {[%clk 0:01:30.6]} 32... Kf5 {[%clk 0:00:45]} 33.
b3 {[%clk 0:01:01.5]} 33... Ke5 {[%clk 0:00:36.8]} 34. Rg8 {[%clk 0:00:56.8]}
34... Rc6 {[%clk 0:00:30.5]} 35. Rb8 {[%clk 0:00:49.1]} 35... Rc5 {[%clk
0:00:30.3]} 36. b4 {[%clk 0:00:49.3]} 36... Rd5+ {[%clk 0:00:29.2]} 37. Kc3
{[%clk 0:00:48.1]} 37... Rd3+ {[%clk 0:00:18.4]} 38. Kc2 {[%clk 0:00:48.2]}
38... Rd5 {[%clk 0:00:19.3]} 39. Rb6 {[%clk 0:00:39.2]} 39... g5 {[%clk
0:00:18.1]} 40. Kc3 {[%clk 0:00:36.2]} 40... Rd3+ {[%clk 0:00:17.4]} 41. Kc2
{[%clk 0:00:36.7]} 41... Rd5 {[%clk 0:00:18.3]} 42. g3 {[%clk 0:00:36.4]} 42...
Kf5 {[%clk 0:00:17.5]} 43. Rc6 {[%clk 0:00:34.5]} 43... Ke5 {[%clk 0:00:09.5]}
44. Rc8 {[%clk 0:00:27.4]} 44... Kd4 {[%clk 0:00:09.2]} 45. Kd2 {[%clk
0:00:24.4]} 45... g4 {[%clk 0:00:06]} 46. Rc7 {[%clk 0:00:22]} 46... Ke5+ {[%clk
0:00:06.1]} 47. Ke2 {[%clk 0:00:22.2]} 47... Kd4 {[%clk 0:00:06.3]} 48. Rg7
{[%clk 0:00:18.3]} 48... Re5 {[%clk 0:00:01.5]} 49. Rxg4 {[%clk 0:00:18.1]}
49... Kc3 {[%clk 0:00:02.2]} 50. f3 {[%clk 0:00:16.4]} 50... exf3+ {[%clk
0:00:01.9]} 51. Kxf3 {[%clk 0:00:16.2]} 51... Rd5 {[%clk 0:00:02.2]} 52. Rf4
{[%clk 0:00:15.6]} 52... Rd3+ {[%clk 0:00:02.3]} 53. Kg2 {[%clk 0:00:15.3]}
53... Rd2+ {[%clk 0:00:02.1]} 54. Kh3 {[%clk 0:00:15.5]} 54... Rd8 {[%clk
0:00:01.7]} 55. g4 {[%clk 0:00:14.9]} 55... Rc8 {[%clk 0:00:02]} 56. g5 {[%clk
0:00:14.6]} 56... Kd3 {[%clk 0:00:01.6]} 57. Kg4 {[%clk 0:00:13.7]} 57... Ke3
{[%clk 0:00:02.1]} 58. Rf5 {[%clk 0:00:14]} 58... Rc4+ {[%clk 0:00:02.1]} 59.
Kh5 {[%clk 0:00:14.3]} 59... Rxb4 {[%clk 0:00:03]} 60. g6 {[%clk 0:00:14.7]}
60... Ke4 {[%clk 0:00:03]} 61. g7 {[%clk 0:00:13.6]} 61... Rb1 {[%clk
0:00:02.3]} 62. Rg5 {[%clk 0:00:13.5]} 62... Rh1+ {[%clk 0:00:02.7]} 63. Kg6
{[%clk 0:00:13.9]} 1-0

[Event "Late-Titled-Tuesday-Blitz-June-25-2024"]
[Site "Chess.com"]
[Date "2024.06.25"]
[Round "5"]
[White "Queensandpawns"]
[Black "xasid81"]
[Result "0-1"]
[WhiteElo "2281"]
[BlackElo "2543"]
[TimeControl "180+1"]
[EndTime "14:55:21 PDT"]
[Termination "xasid81 won by checkmate"]

1. e4 {[%clk 0:03:00.9]} 1... d5 {[%clk 0:02:59.2]} 2. Nc3 {[%clk 0:03:00.2]}
2... dxe4 {[%clk 0:02:53.3]} 3. Nxe4 {[%clk 0:03:01.1]} 3... Nd7 {[%clk
0:02:53.8]} 4. Nf3 {[%clk 0:03:00.4]} 4... Ngf6 {[%clk 0:02:53.9]} 5. Neg5
{[%clk 0:03:00.6]} 5... h6 {[%clk 0:02:52.2]} 6. Nxf7 {[%clk 0:02:59]} 6... Kxf7
{[%clk 0:02:53.1]} 7. d4 {[%clk 0:02:59.3]} 7... e6 {[%clk 0:02:48.3]} 8. Bd3
{[%clk 0:02:59.4]} 8... Bd6 {[%clk 0:02:45.9]} 9. O-O {[%clk 0:02:59.3]} 9...
Rf8 {[%clk 0:02:38.2]} 10. Re1 {[%clk 0:02:58.7]} 10... Kg8 {[%clk 0:02:37.8]}
11. Ne5 {[%clk 0:02:58.9]} 11... Bxe5 {[%clk 0:02:21.5]} 12. dxe5 {[%clk
0:02:59.8]} 12... Nd5 {[%clk 0:02:21.5]} 13. Qg4 {[%clk 0:02:56.9]} 13... Nc5
{[%clk 0:02:10]} 14. Bxh6 {[%clk 0:02:53.2]} 14... Qe7 {[%clk 0:02:03.8]} 15.
Bf1 {[%clk 0:01:50.9]} 15... Qf7 {[%clk 0:01:55.1]} 16. c4 {[%clk 0:01:49.3]}
16... Nb4 {[%clk 0:01:43.3]} 17. Be3 {[%clk 0:01:36.1]} 17... Ncd3 {[%clk
0:01:32.6]} 18. Re2 {[%clk 0:01:03.8]} 18... Nxe5 {[%clk 0:01:31.7]} 19. Qg3
{[%clk 0:01:00.2]} 19... Ng6 {[%clk 0:01:18.5]} 20. Bc5 {[%clk 0:00:58.3]} 20...
Nc6 {[%clk 0:01:13.7]} 21. Bxf8 {[%clk 0:00:56.9]} 21... Nxf8 {[%clk 0:01:13.1]}
22. Rd1 {[%clk 0:00:52]} 22... e5 {[%clk 0:01:11.9]} 23. Re3 {[%clk 0:00:42.4]}
23... Qg6 {[%clk 0:01:09.1]} 24. Qh4 {[%clk 0:00:36.2]} 24... Qf6 {[%clk
0:00:56.6]} 25. Qg3 {[%clk 0:00:32.2]} 25... Be6 {[%clk 0:00:49.3]} 26. Rf3
{[%clk 0:00:27.4]} 26... Qg6 {[%clk 0:00:48.3]} 27. Qh4 {[%clk 0:00:27.5]} 27...
Qg4 {[%clk 0:00:31]} 28. Qg3 {[%clk 0:00:08.8]} 28... e4 {[%clk 0:00:29.5]} 29.
Re3 {[%clk 0:00:08.3]} 29... Qxd1 {[%clk 0:00:28.4]} 30. Qxc7 {[%clk 0:00:07.2]}
30... Qd7 {[%clk 0:00:27.5]} 31. Qf4 {[%clk 0:00:06.8]} 31... Bf5 {[%clk
0:00:26.8]} 32. Qh4 {[%clk 0:00:06.8]} 32... Ng6 {[%clk 0:00:26.2]} 33. Qg5
{[%clk 0:00:06.4]} 33... Rf8 {[%clk 0:00:25.3]} 34. c5 {[%clk 0:00:06.5]} 34...
Nce5 {[%clk 0:00:24.8]} 35. f4 {[%clk 0:00:05.3]} 35... Nd3 {[%clk 0:00:23.3]}
36. Rg3 {[%clk 0:00:04.9]} 36... Ndxf4 {[%clk 0:00:21.6]} 37. h4 {[%clk
0:00:04.7]} 37... Qd4+ {[%clk 0:00:20.2]} 38. Kh1 {[%clk 0:00:04.4]} 38... Qf6
{[%clk 0:00:20.9]} 39. h5 {[%clk 0:00:02.4]} 39... Qxg5 {[%clk 0:00:20.8]} 40.
Rxg5 {[%clk 0:00:03.3]} 40... Nxh5 {[%clk 0:00:19.3]} 41. Rxh5 {[%clk
0:00:02.7]} 41... Be6 {[%clk 0:00:19.2]} 42. Kg1 {[%clk 0:00:02.1]} 42... Rf5
{[%clk 0:00:18.3]} 43. Rh3 {[%clk 0:00:02]} 43... Rxf1+ {[%clk 0:00:17.6]} 44.
Kxf1 {[%clk 0:00:02.2]} 44... Bxh3 {[%clk 0:00:18.5]} 45. gxh3 {[%clk
0:00:02.7]} 45... Nf4 {[%clk 0:00:17.2]} 46. Kg1 {[%clk 0:00:02.5]} 46... e3
{[%clk 0:00:17.4]} 47. Kh2 {[%clk 0:00:03.4]} 47... Kf7 {[%clk 0:00:17.5]} 48.
Kg3 {[%clk 0:00:04.3]} 48... e2 {[%clk 0:00:18.1]} 49. Kf2 {[%clk 0:00:04.8]}
49... Ke6 {[%clk 0:00:18.7]} 50. Ke1 {[%clk 0:00:05.7]} 50... Kd5 {[%clk
0:00:19.2]} 51. h4 {[%clk 0:00:05.9]} 51... Kxc5 {[%clk 0:00:19.4]} 52. a3
{[%clk 0:00:06.8]} 52... Kc4 {[%clk 0:00:19.7]} 53. b3+ {[%clk 0:00:07.7]} 53...
Kxb3 {[%clk 0:00:20.2]} 54. h5 {[%clk 0:00:08.4]} 54... Nxh5 {[%clk 0:00:20.1]}
55. Kf2 {[%clk 0:00:09.1]} 55... Kxa3 {[%clk 0:00:20.6]} 56. Ke1 {[%clk
0:00:10]} 56... Kb2 {[%clk 0:00:21.2]} 57. Kf2 {[%clk 0:00:10.9]} 57... a5
{[%clk 0:00:22]} 58. Ke1 {[%clk 0:00:11.8]} 58... b5 {[%clk 0:00:22.9]} 59. Kd2
{[%clk 0:00:12.2]} 59... b4 {[%clk 0:00:23.8]} 60. Ke1 {[%clk 0:00:13.1]} 60...
b3 {[%clk 0:00:24.7]} 61. Kd2 {[%clk 0:00:14]} 61... a4 {[%clk 0:00:25.5]} 62.
Ke1 {[%clk 0:00:14.9]} 62... a3 {[%clk 0:00:26.4]} 63. Kf2 {[%clk 0:00:15.8]}
63... g5 {[%clk 0:00:26.2]} 64. Ke1 {[%clk 0:00:16.7]} 64... Nf6 {[%clk
0:00:27.1]} 65. Kd2 {[%clk 0:00:17.6]} 65... Nd7 {[%clk 0:00:28]} 66. Ke1 {[%clk
0:00:18.5]} 66... Nb8 {[%clk 0:00:28.9]} 67. Kf2 {[%clk 0:00:19.4]} 67... g4
{[%clk 0:00:29.6]} 68. Ke1 {[%clk 0:00:20.3]} 68... a2 {[%clk 0:00:30.3]} 69.
Kd2 {[%clk 0:00:21.2]} 69... Ka3 {[%clk 0:00:30.4]} 70. Ke1 {[%clk 0:00:22.1]}
70... b2 {[%clk 0:00:31]} 71. Kf2 {[%clk 0:00:23]} 71... a1=Q {[%clk 0:00:31.7]}
72. Kg2 {[%clk 0:00:21.8]} 72... b1=Q {[%clk 0:00:32]} 73. Kf2 {[%clk
0:00:22.1]} 73... Nc6 {[%clk 0:00:32.4]} 74. Ke3 {[%clk 0:00:22.4]} 74... Qc1+
{[%clk 0:00:31.6]} 75. Kf2 {[%clk 0:00:23.3]} 75... Qd4+ {[%clk 0:00:31.5]} 76.
Kg2 {[%clk 0:00:24.2]} 76... Qe4+ {[%clk 0:00:31.6]} 77. Kh2 {[%clk 0:00:25]}
77... Qcf4+ {[%clk 0:00:31.2]} 78. Kg1 {[%clk 0:00:25.1]} 78... e1=Q# {[%clk
0:00:31.6]} 0-1

[Event "Late-Titled-Tuesday-Blitz-June-25-2024"]
[Site "Chess.com"]
[Date "2024.06.25"]
[Round "5"]
[White "zajka-molotok"]
[Black "lamomiajunior"]
[Result "0-1"]
[WhiteElo "2540"]
[BlackElo "2758"]
[TimeControl "180+1"]
[EndTime "14:55:29 PDT"]
[Termination "lamomiajunior won on time"]

1. e4 {[%clk 0:03:00.9]} 1... e5 {[%clk 0:02:58.9]} 2. Nf3 {[%clk 0:03:00.4]}
2... Nc6 {[%clk 0:02:59.3]} 3. Nc3 {[%clk 0:02:59.5]} 3... Nf6 {[%clk
0:02:58.3]} 4. Bb5 {[%clk 0:02:59.1]} 4... Bd6 {[%clk 0:02:54.7]} 5. O-O {[%clk
0:02:57.9]} 5... O-O {[%clk 0:02:54.2]} 6. d3 {[%clk 0:02:57.5]} 6... a6 {[%clk
0:02:54.2]} 7. Ba4 {[%clk 0:02:53.9]} 7... h6 {[%clk 0:02:53.9]} 8. a3 {[%clk
0:02:53.1]} 8... b5 {[%clk 0:02:53.9]} 9. Bb3 {[%clk 0:02:52.6]} 9... Bc5 {[%clk
0:02:52.4]} 10. Be3 {[%clk 0:02:50.8]} 10... d6 {[%clk 0:02:51.9]} 11. Bxc5
{[%clk 0:02:47.5]} 11... dxc5 {[%clk 0:02:52.2]} 12. Nd5 {[%clk 0:02:46.7]}
12... Be6 {[%clk 0:02:51.6]} 13. Nxf6+ {[%clk 0:02:33.3]} 13... Qxf6 {[%clk
0:02:52.5]} 14. Bxe6 {[%clk 0:02:30.5]} 14... Qxe6 {[%clk 0:02:53.4]} 15. h3
{[%clk 0:02:26.1]} 15... Rfd8 {[%clk 0:02:51.8]} 16. Qc1 {[%clk 0:02:20.1]}
16... Rd7 {[%clk 0:02:44.1]} 17. Qe3 {[%clk 0:02:17.3]} 17... Nd4 {[%clk
0:02:43.3]} 18. Rac1 {[%clk 0:02:15.9]} 18... Rad8 {[%clk 0:02:40]} 19. Nh2
{[%clk 0:02:13.5]} 19... c4 {[%clk 0:02:34]} 20. dxc4 {[%clk 0:02:09.2]} 20...
Qxc4 {[%clk 0:02:34.9]} 21. Rfe1 {[%clk 0:01:52.2]} 21... Nxc2 {[%clk
0:02:18.9]} 22. Qg3 {[%clk 0:01:50]} 22... Nxe1 {[%clk 0:01:59.6]} 23. Rxc4
{[%clk 0:01:48.7]} 23... bxc4 {[%clk 0:02:00.5]} 24. Ng4 {[%clk 0:01:43.2]}
24... Rd1 {[%clk 0:01:49]} 25. Kh2 {[%clk 0:01:41.9]} 25... Nd3 {[%clk
0:01:21.3]} 26. Nxh6+ {[%clk 0:01:39.6]} 26... Kh7 {[%clk 0:01:20.9]} 27. Nxf7
{[%clk 0:01:38.1]} 27... Rf8 {[%clk 0:01:11.6]} 28. Ng5+ {[%clk 0:01:37]} 28...
Kg8 {[%clk 0:01:10.9]} 29. Qh4 {[%clk 0:01:30.3]} 29... Rxf2 {[%clk 0:01:07]}
30. Qh7+ {[%clk 0:01:29.8]} 30... Kf8 {[%clk 0:01:07.5]} 31. Qh8+ {[%clk
0:01:29.1]} 31... Ke7 {[%clk 0:01:08]} 32. Qxg7+ {[%clk 0:01:29.7]} 32... Kd6
{[%clk 0:01:08.1]} 33. Qg6+ {[%clk 0:01:20.3]} 33... Kc5 {[%clk 0:00:54.2]} 34.
Ne6+ {[%clk 0:01:19.5]} 34... Kb6 {[%clk 0:00:50.5]} 35. Nd4+ {[%clk 0:01:16.6]}
35... Kc5 {[%clk 0:00:48.4]} 36. Ne6+ {[%clk 0:01:10]} 36... Kb6 {[%clk
0:00:36]} 37. Nd8+ {[%clk 0:01:08.3]} 37... Kc5 {[%clk 0:00:35.9]} 38. Qxa6
{[%clk 0:00:51.2]} 38... Kd4 {[%clk 0:00:34.2]} 39. Ne6+ {[%clk 0:00:44.5]}
39... Ke3 {[%clk 0:00:29.5]} 40. Qa7+ {[%clk 0:00:31.9]} 40... Ke2 {[%clk
0:00:22.2]} 41. Qxc7 {[%clk 0:00:23.1]} 41... Kf1 {[%clk 0:00:20.3]} 42. Kg3
{[%clk 0:00:18.5]} 42... Rxg2+ {[%clk 0:00:20.9]} 43. Kh4 {[%clk 0:00:18.5]}
43... Nxb2 {[%clk 0:00:17.5]} 44. Ng5 {[%clk 0:00:16.6]} 44... Rd3 {[%clk
0:00:14.7]} 45. Qxe5 {[%clk 0:00:14.3]} 45... c3 {[%clk 0:00:13.9]} 46. Qb5
{[%clk 0:00:10.3]} 46... Ke1 {[%clk 0:00:11.6]} 47. a4 {[%clk 0:00:07.9]} 47...
Rgg3 {[%clk 0:00:08.9]} 48. a5 {[%clk 0:00:07.2]} 48... Nd1 {[%clk 0:00:05.9]}
49. a6 {[%clk 0:00:06.8]} 49... c2 {[%clk 0:00:06.5]} 50. Qa5+ {[%clk
0:00:05.9]} 50... Rc3 {[%clk 0:00:07]} 51. a7 {[%clk 0:00:03.2]} 51... c1=Q
{[%clk 0:00:07.4]} 52. a8=Q {[%clk 0:00:02.8]} 52... Qf4+ {[%clk 0:00:07.9]} 53.
Kh5 {[%clk 0:00:02.9]} 53... Rxh3+ {[%clk 0:00:05]} 54. Kg6 {[%clk 0:00:02.2]}
54... Re3 {[%clk 0:00:03.1]} 55. Q8d5 {[%clk 0:00:01.5]} 55... Qg3 {[%clk
0:00:02.8]} 56. Qf5 {[%clk 0:00:01]} 56... Re2 {[%clk 0:00:02.1]} 0-1

[Event "Late-Titled-Tuesday-Blitz-June-25-2024"]
[Site "Chess.com"]
[Date "2024.06.25"]
[Round "5"]
[White "JSPrepz"]
[Black "Keithonsky"]
[Result "1-0"]
[WhiteElo "2823"]
[BlackElo "2611"]
[TimeControl "180+1"]
[EndTime "14:55:34 PDT"]
[Termination "JSPrepz won on time"]

1. e4 {[%clk 0:03:00.9]} 1... c5 {[%clk 0:02:56.4]} 2. Nf3 {[%clk 0:03:01.1]}
2... Nc6 {[%clk 0:02:55.1]} 3. b4 {[%clk 0:03:01.7]} 3... Nxb4 {[%clk
0:02:54.3]} 4. c3 {[%clk 0:03:01.8]} 4... Nc6 {[%clk 0:02:54.9]} 5. d4 {[%clk
0:03:02.4]} 5... d5 {[%clk 0:02:55.5]} 6. exd5 {[%clk 0:03:02.1]} 6... Qxd5
{[%clk 0:02:55.3]} 7. Na3 {[%clk 0:03:02.7]} 7... Bg4 {[%clk 0:02:52.6]} 8. Be2
{[%clk 0:02:58.7]} 8... cxd4 {[%clk 0:02:45.8]} 9. Nb5 {[%clk 0:02:56.3]} 9...
Qd7 {[%clk 0:02:46.4]} 10. cxd4 {[%clk 0:02:54.2]} 10... e6 {[%clk 0:02:41.1]}
11. O-O {[%clk 0:02:53.2]} 11... a6 {[%clk 0:02:41.7]} 12. Nc3 {[%clk
0:02:51.3]} 12... Nf6 {[%clk 0:02:41.9]} 13. Be3 {[%clk 0:02:34.4]} 13... Bb4
{[%clk 0:02:40.1]} 14. Na4 {[%clk 0:02:30.7]} 14... Rd8 {[%clk 0:02:39.2]} 15.
Rb1 {[%clk 0:02:28.7]} 15... b5 {[%clk 0:02:30]} 16. Nb2 {[%clk 0:02:08.4]}
16... Bxf3 {[%clk 0:02:05]} 17. Bxf3 {[%clk 0:02:08.8]} 17... Nxd4 {[%clk
0:02:05.4]} 18. Bxd4 {[%clk 0:01:24.4]} 18... Qxd4 {[%clk 0:02:04.8]} 19. Bc6+
{[%clk 0:01:25.3]} 19... Ke7 {[%clk 0:02:02.6]} 20. Qf3 {[%clk 0:01:26.2]} 20...
Qc3 {[%clk 0:01:59.2]} 21. Rfc1 {[%clk 0:01:18.2]} 21... Qxf3 {[%clk 0:01:58.7]}
22. Bxf3 {[%clk 0:01:19.1]} 22... Rc8 {[%clk 0:01:53.7]} 23. Nd3 {[%clk
0:01:17.1]} 23... Ba3 {[%clk 0:01:48.5]} 24. Re1 {[%clk 0:01:15.1]} 24... Rc3
{[%clk 0:01:44.5]} 25. Ne5 {[%clk 0:01:15.4]} 25... Rhc8 {[%clk 0:01:42.8]} 26.
Bb7 {[%clk 0:01:13.5]} 26... R8c7 {[%clk 0:01:33.2]} 27. Bxa6 {[%clk 0:01:13.9]}
27... b4 {[%clk 0:01:28.6]} 28. Bf1 {[%clk 0:00:50.5]} 28... Rc2 {[%clk
0:01:28.6]} 29. Nd3 {[%clk 0:00:40.2]} 29... Nd5 {[%clk 0:01:28.4]} 30. g3
{[%clk 0:00:06.4]} 30... R7c3 {[%clk 0:01:25.4]} 31. Ne5 {[%clk 0:00:06.1]}
31... f6 {[%clk 0:01:22.5]} 32. Nd3 {[%clk 0:00:04.1]} 32... Rxa2 {[%clk
0:01:20.9]} 33. Rbd1 {[%clk 0:00:03.9]} 33... Kf7 {[%clk 0:01:19.8]} 34. Bh3
{[%clk 0:00:03.4]} 34... e5 {[%clk 0:01:18.5]} 35. Nxe5+ {[%clk 0:00:03.9]}
35... fxe5 {[%clk 0:01:18.5]} 36. Rxd5 {[%clk 0:00:04.8]} 36... Rc1 {[%clk
0:00:59.3]} 37. Rxe5 {[%clk 0:00:02.9]} 37... Rxe1+ {[%clk 0:00:56.6]} 38. Rxe1
{[%clk 0:00:03.8]} 38... Kf6 {[%clk 0:00:54.1]} 39. Be6 {[%clk 0:00:03.9]} 39...
Rd2 {[%clk 0:00:53.1]} 40. Bc4 {[%clk 0:00:04]} 40... Rd4 {[%clk 0:00:52.9]} 41.
Bb3 {[%clk 0:00:03.9]} 41... Rd3 {[%clk 0:00:53.3]} 42. Bg8 {[%clk 0:00:04.6]}
42... b3 {[%clk 0:00:52.4]} 43. Re6+ {[%clk 0:00:05.3]} 43... Kg5 {[%clk
0:00:50.5]} 44. Rb6 {[%clk 0:00:05.5]} 44... b2 {[%clk 0:00:50]} 45. Kg2 {[%clk
0:00:06.1]} 45... Rd2 {[%clk 0:00:38.5]} 46. Bxh7 {[%clk 0:00:06.4]} 46... Bc5
{[%clk 0:00:17.7]} 47. h4+ {[%clk 0:00:06.7]} 47... Kh5 {[%clk 0:00:15.6]} 48.
Rc6 {[%clk 0:00:02.8]} 48... Rxf2+ {[%clk 0:00:08.6]} 49. Kh3 {[%clk 0:00:03.1]}
49... g6 {[%clk 0:00:07]} 50. Bxg6+ {[%clk 0:00:03]} 50... Kh6 {[%clk
0:00:07.5]} 51. Bd3+ {[%clk 0:00:03.3]} 51... Kg7 {[%clk 0:00:07.1]} 52. Rxc5
{[%clk 0:00:03.9]} 52... Rd2 {[%clk 0:00:07.6]} 53. Rc7+ {[%clk 0:00:04]} 53...
Kf6 {[%clk 0:00:02.9]} 54. Bh7 {[%clk 0:00:04.4]} 54... Ke5 {[%clk 0:00:03]} 55.
Rb7 {[%clk 0:00:04.9]} 55... Kd4 {[%clk 0:00:03]} 56. Rd7+ {[%clk 0:00:05.2]}
56... Kc3 {[%clk 0:00:03.9]} 57. Rxd2 {[%clk 0:00:05.9]} 57... Kxd2 {[%clk
0:00:04.2]} 58. h5 {[%clk 0:00:06.6]} 58... Kc3 {[%clk 0:00:05.1]} 59. h6 {[%clk
0:00:07.1]} 59... Kb4 {[%clk 0:00:06]} 60. Bg6 {[%clk 0:00:07.6]} 60... Ka3
{[%clk 0:00:06.9]} 61. h7 {[%clk 0:00:08.1]} 61... Kb4 {[%clk 0:00:03.1]} 62.
h8=Q {[%clk 0:00:08.3]} 1-0